Cogmind - Beta 15 @@@ ROGUE MODE // 2025.06.20 @ 16:23:21 Player: Cracklepappy Result: Self-destructed Performance ------------- Evolutions (4) 2000 Regions Visited (18) 3600 Robots Destroyed (350) 1750 Value Destroyed (14537) 14537 Prototype IDs (28) 560 Alien Tech Used (0) 0 Bonus (8304) 8304 TOTAL SCORE: 30751 Bonus ------- High Alert Combat Kills 2381 Follower Combat Kills 965 Entered Garrisons 1000 Used RIF Installer 4000 Friendly Fire -42 Cogmind --------- Core Integrity 521/850 Matter 9/300 Energy 157/170 System Corruption 3% Temperature Cool (0) Movement Rolling (170) Ox4 Location -6/Garrison Parts ------- > --- POWER (1) -------- Mini Fusion Reactor > --- PROPULSION (4) --- Centrium Wheel Centrium Wheel > --- UTILITY (6) ------ Advanced Cooling System Huge Storage Unit Hardened Medium Armor Plating Graphene Brace Improved Hardlight Generator > --- WEAPON (4) ------- Precision Assault Rifle Coil Gun Heavy Mass Driver > --- INVENTORY (25) --- Reinforced Quantum Reactor Centrium Wheel Advanced Cooling System Matter Compressor (158) Improved Shock Absorption System Advanced EM Shield Authchip [Propulsion] Relay Coupler [NC] (32) Relay Coupler [Sentry] (24) Relay Coupler [Specialist] (24) Relay Coupler [Hunter] (24) Relay Coupler [Hunter] (19) High-powered Tractor Beam Force Rifle Heavy Wave Gun Precision Assault Rifle Improved Heavy Machine Gun Improved Heavy Machine Gun Improved Heavy Machine Gun Remote Datajack Plasma Cutter Thunder Hammer Peak State ------------ > --- POWER ------------ Fission Core > --- PROPULSION ------- Armored Wheel Centrium Wheel Centrium Wheel Centrium Wheel > --- UTILITY ---------- Advanced Cooling System Huge Storage Unit Advanced Phase Shifter Improved Heavy Armor Plating Relay Coupler [Hunter] > --- WEAPON ----------- Precision Assault Rifle Precision Assault Rifle Precision Assault Rifle Precision Assault Rifle > --- INVENTORY -------- Mini Fusion Reactor Reinforced Quantum Reactor Compact Wheel Advanced Cooling System Matter Compressor Hardened Medium Armor Plating Improved Heavy Armor Plating Improved Shock Absorption System Advanced EM Shield Improved Hardlight Generator Hacking Suite Authchip [Propulsion] High-powered Tractor Beam Force Rifle Heavy Wave Gun Precision Assault Rifle Precision Assault Rifle Coil Gun Improved Heavy Machine Gun Improved Heavy Machine Gun Improved Heavy Machine Gun Remote Datajack Plasma Cutter Thunder Hammer [Rating: 92] Favorites ----------- Power Mini Fusion Reactor Engine Reinforced Ion Engine Power Core Light Nuclear Core Reactor Mini Fusion Reactor Propulsion Light Treads Treads Light Treads Wheel Centrium Wheel Utility Huge Storage Unit Device Shield Generator Storage Huge Storage Unit Processor Core Analyzer Hackware Hacking Suite Protection Hardened Medium Armor Plating Weapon Precision Assault Rifle Energy Gun Improved Medium Laser Energy Cannon Plasma Cannon Ballistic Gun Precision Assault Rifle Ballistic Cannon Light Cannon Launcher Grenade Launcher Special Weapon Remote Datajack Impact Weapon Thunder Hammer Slashing Weapon Great Axe Piercing Weapon Spear Special Melee Weapon Improved Datajack Build | -11 -10 -10 -9 -9 -8 -8 -8 -8 -7 -7 -7 -7 -7 -7 -6 -6 -6 -6 ------- Run | Yrd Mat Min Mat Min Mat Gar Mat Gar Fac Was Fac Gar Fac Gar Fac Was Fac Gar Slots Evolved 8 | . . . 2 . 2 . . . 2 . . . . . 2 . . . Power . | . . . . . . . . . . . . . . . . . . . Propulsion 2 | . . . 1 . . . . . 1 . . . . . . . . . Utility 4 | . . . . . 1 . . . 1 . . . . . 2 . . . Weapon 2 | . . . 1 . 1 . . . . . . . . . . . . . Parts Attached 221 | 8 9 . 41 4 3 13 19 21 40 2 18 7 6 12 3 1 5 9 Power 23 | 2 1 . 3 . 1 2 2 1 5 . 1 2 . 1 1 . 1 . Engine 16 | 2 . . 3 . . 1 2 1 4 . . 1 . 1 . . 1 . Core 5 | . 1 . . . 1 1 . . . . 1 . . . 1 . . . Reactor 2 | . . . . . . . . . 1 . . 1 . . . . . . Propulsion 47 | 2 . . 12 2 1 1 5 6 7 . 6 1 1 2 . . . 1 Treads 28 | 2 . . 12 2 1 1 4 5 1 . . . . . . . . . Leg . | . . . . . . . . . . . . . . . . . . . Wheel 19 | . . . . . . . 1 1 6 . 6 1 1 2 . . . 1 Hover . | . . . . . . . . . . . . . . . . . . . Flight . | . . . . . . . . . . . . . . . . . . . Utility 72 | 2 3 . 8 . . 5 6 6 12 1 7 1 4 7 2 1 2 5 Device 30 | 1 1 . 2 . . 4 1 4 4 . 4 . 2 4 1 . . 2 Storage 5 | 1 1 . 1 . . . 1 . . . . . . . . . 1 . Processor 3 | . . . 1 . . . . . 2 . . . . . . . . . Hackware 19 | . . . . . . 1 2 2 2 1 2 1 2 2 1 1 1 1 Protection 15 | . 1 . 4 . . . 2 . 4 . 1 . . 1 . . . 2 Artifact . | . . . . . . . . . . . . . . . . . . . Weapon 79 | 2 5 . 18 2 1 5 6 8 16 1 4 3 1 2 . . 2 3 Energy Gun 8 | 1 . . 1 . . . . 1 3 . 1 . . . . . 1 . Energy Cannon 1 | . . . . . . . . . 1 . . . . . . . . . Ballistic Gun 44 | 1 1 . 14 1 1 2 4 2 7 . 3 3 . 2 . . 1 2 Ballistic Cannon 10 | . 3 . 1 . . 2 . 3 . . . . . . . . . 1 Launcher 3 | . . . 1 1 . . . . 1 . . . . . . . . . Special Weapon 6 | . . . . . . 1 . 2 1 1 . . 1 . . . . . Impact Weapon 4 | . 1 . 1 . . . . . 2 . . . . . . . . . Slashing Weapon 1 | . . . . . . . . . 1 . . . . . . . . . Piercing Weapon 1 | . . . . . . . 1 . . . . . . . . . . . Special Melee Weapon 1 | . . . . . . . 1 . . . . . . . . . . . Unidentified Prototypes 11 | . . . 3 . . 1 . . 7 . . . . . . . . . Parts Lost 28 | . 1 . 2 . 1 1 . . 10 . 3 . 4 2 . . . 4 Power 2 | . . . . . . . . . 1 . . . 1 . . . . . Propulsion 6 | . . . 1 . . . . . 2 . . . 1 . . . . 2 Utility 11 | . 1 . . . 1 1 . . 2 . 1 . 1 2 . . . 2 Weapon 9 | . . . 1 . . . . . 5 . 2 . 1 . . . . . Highest Loss Streak 7 | . 1 . 1 . 1 1 . . 7 . 2 . 2 1 . . . 3 To Critical Strikes . | . . . . . . . . . . . . . . . . . . . Average Backups 23 | 5 21 25 24 24 23 23 23 24 23 24 23 23 24 24 22 23 23 24 Power 1 | . 1 2 1 1 1 1 1 1 1 1 1 1 . 1 2 2 2 1 Propulsion 2 | 2 3 3 3 4 4 4 3 2 . 1 2 1 . 1 1 1 1 1 Utility 10 | . 8 10 8 8 8 9 10 11 12 10 11 10 11 10 10 11 10 11 Weapon 8 | 1 8 9 9 9 8 7 7 7 7 10 6 8 9 7 7 8 8 8 Tool/Special . | . . . . . . . . . . . . . . . . . . . Unused Backups 67 | . 8 1 14 1 . . 5 5 10 . 2 6 1 4 . 1 . 9 Power 7 | . 1 . 2 . . . . . 2 . . . . 1 . . . 1 Propulsion 7 | . 2 . 2 . . . 1 . . . . 1 . 1 . . . . Utility 41 | . 3 1 6 1 . . 2 4 6 . 1 5 1 2 . 1 . 8 Weapon 10 | . 2 . 4 . . . 1 . 2 . 1 . . . . . . . Tool/Special 2 | . . . . . . . 1 1 . . . . . . . . . . Average Slot Usage (%) 98 | . 99 100 98 100 90 98 99 99 97 100 99 99 99 95 92 93 93 92 Engine 5 | . 7 . 10 11 8 7 9 9 1 . . 2 . 1 5 . . . Core 2 | . 6 14 . . . 1 . . 3 . . . . . . 6 6 1 Reactor 1 | . . . . . . . . . 1 7 6 3 7 5 . . . 4 Treads 18 | . 27 28 32 33 27 27 26 25 6 . . . . . . . . . Wheel 10 | . . . . . . . . . 22 30 29 30 30 29 26 26 26 25 Device 5 | . 11 . . 9 9 8 6 10 1 7 2 3 1 5 13 13 10 12 Storage 9 | . 14 14 11 11 9 9 9 9 7 7 7 7 7 7 6 6 6 6 Hackware 4 | . . . . . . 8 2 . 10 13 14 11 14 5 5 6 8 3 Protection 6 | . 2 14 10 1 . . 7 6 2 . 3 6 5 5 6 6 6 9 Ballistic Gun 23 | . 8 . 25 32 36 31 30 27 26 23 27 19 26 27 22 20 20 23 Ballistic Cannon 5 | . 16 28 4 . . 3 3 5 . . . . . . . . . . Peak Build Rating 92 | 7 12 12 21 20 24 40 47 42 66 55 75 75 75 83 87 87 89 92 Average Rating 39 | 5 9 12 18 19 23 28 40 36 49 53 60 69 71 76 84 86 85 86 On Entrance 45 | . 7 12 12 19 20 22 40 40 36 54 53 63 73 71 77 85 87 89 Naked Turns . | . . . . . . . . . . . . . . . . . . . Heaviest Build 143 | 15 94 94 106 106 104 119 127 124 117 109 112 116 113 123 126 123 124 143 Greatest Support 84 | 40 40 40 60 60 60 60 84 76 75 58 64 60 60 64 60 60 60 60 Greatest Overweight (x) 9 | . 2 2 2 1 1 1 9 4 4 1 1 2 2 2 2 2 2 3 Average Overweight (x) 1 | . 1 2 1 1 1 1 1 1 2 1 1 1 1 1 2 2 2 2 Largest Inventory Capacity 25 | 8 25 25 25 25 25 25 25 25 25 25 25 25 25 25 25 25 25 25 Average Capacity 24 | 7 23 25 25 25 25 25 25 25 25 25 25 25 25 25 25 25 25 25 Most Carried 25 | 8 25 25 25 25 25 25 25 25 25 25 25 25 25 25 25 25 25 25 Average Carried 24 | 5 21 24 24 24 24 24 24 24 24 24 24 24 24 24 23 24 24 24 Final Capacity 25 | 8 25 25 25 25 25 25 25 25 25 25 25 25 25 25 25 25 25 25 Final Carried 25 | 8 25 25 25 25 25 25 25 25 25 25 25 25 24 25 25 25 24 22 Class Distribution -------------------- 29% | Tank 23% | Scavenger-Tank 18% | Mutant 9% | Bothacker-Tank 7% | Commander-Tank 5% | Bothacker-Gunner Dominant Class ---------------- Mutant | -10/Materials Mutant | -10/Mines Scavenger-Tank | -9/Materials Scavenger-Tank | -9/Mines Scavenger-Tank | -8/Materials Scavenger-Tank | -8/Garrison Tank | -8/Materials Tank | -8/Garrison Bothacker-Gunner | -7/Factory Scavenger-Tank | -7/Waste Tank | -7/Factory Tank | -7/Garrison Bothacker-Tank | -7/Factory Tank | -7/Garrison Tank | -6/Factory Tank | -6/Waste Tank | -6/Factory Bothacker-Tank | -6/Garrison Resources | -11 -10 -10 -9 -9 -8 -8 -8 -8 -7 -7 -7 -7 -7 -7 -6 -6 -6 -6 ----------- Run | Yrd Mat Min Mat Min Mat Gar Mat Gar Fac Was Fac Gar Fac Gar Fac Was Fac Gar Matter Collected 16678 | 307 743 134 1545 395 179 490 1477 1340 2743 . 1972 203 1438 1874 270 . 344 1224 Remotely 1258 | 61 . . . . . . . . 583 . . . . 252 . . . 362 Salvage Created 14676 | 146 922 143 1538 221 304 371 865 1455 2283 . 1932 203 911 1607 91 . 344 1340 Parts 778 | 11 77 16 106 8 22 33 46 68 117 . 84 7 52 78 7 . 2 44 Haulers Intercepted 11 | . 2 . 6 . . . 1 . 2 . . . . . . . . . Recyclers Shooed 10 | 1 1 . 1 . 1 . 2 . 2 . 2 . . . . . . . Parts Field Recycled . | . . . . . . . . . . . . . . . . . . . Retrieved Matter . | . . . . . . . . . . . . . . . . . . . Parts Self-Destructed . | . . . . . . . . . . . . . . . . . . . Prevented . | . . . . . . . . . . . . . . . . . . . Kills | -11 -10 -10 -9 -9 -8 -8 -8 -8 -7 -7 -7 -7 -7 -7 -6 -6 -6 -6 ------- Run | Yrd Mat Min Mat Min Mat Gar Mat Gar Fac Was Fac Gar Fac Gar Fac Was Fac Gar Combat Hostiles Destroyed 282 | . 22 9 29 15 10 15 16 28 33 . 29 . 15 33 4 . . 24 Melee 1 | . . . . . 1 . . . . . . . . . . . . . Guns 232 | . 12 . 17 8 9 14 10 26 33 . 28 . 15 33 4 . . 23 Cannons 37 | . 10 9 8 . . 1 6 2 . . . . . . . . . 1 AOE 11 | . . . 4 7 . . . . . . . . . . . . . . Classes Destroyed 20 | 2 8 . 2 1 . 2 1 1 2 . . . . 1 . . . . Worker 13 | . 1 1 1 . . . 1 . 4 . 3 . 2 . . . . . Builder 6 | . 1 . . . . . . . 2 . 1 . 1 . . . 1 . Tunneler 7 | 4 . . . . . . . . 3 . . . . . . . . . Hauler 12 | . 2 . 6 . . . 2 . 2 . . . . . . . . . Recycler 25 | 1 1 . 3 . 1 . 1 . 4 . 10 . 1 . . . 3 . Mechanic 3 | . 1 . 1 . . . . . . . 1 . . . . . . . Operator 5 | . 2 . 2 . . . 1 . . . . . . . . . . . Watcher 7 | . 3 . 3 . . . . . . . . . . 1 . . . . Swarmer 73 | . 6 7 10 . 7 8 2 7 4 . 7 . . 7 4 . . 4 Cutter 2 | . . . . . . 1 . . . . . . . 1 . . . . Grunt 105 | . 16 2 9 2 1 2 8 9 11 . 14 . 4 11 . . . 16 Brawler 5 | . . . 1 1 . . . 1 . . . . . 1 . . . 1 Duelist 6 | . . . . . . . 1 1 3 . . . . . . . . 1 Protector 2 | . . . . . . . . . 2 . . . . . . . . . Sentry 43 | . . . 9 1 2 3 3 6 3 . 2 . 5 8 . . . 1 Specialist 4 | . . . . . . . . . 2 . . . 1 1 . . . . Hunter 8 | . . . . . . 1 2 1 2 . . . 2 . . . . . Programmer 23 | . . . . . . . . 3 6 . 6 . 3 4 . . . 1 Heavy 1 | . . . . . . . . . . . . . . 1 . . . . Assembled 11 | . . . . 11 . . . . . . . . . . . . . . Best Kill Streak 10 | 4 3 3 7 9 10 3 6 4 7 . 5 . 7 6 4 . 3 8 Combat Bots Only 9 | . 3 3 5 9 5 3 6 4 6 . 4 . 4 6 4 . . 8 Max Kills in Single Turn 3 | 1 2 1 2 3 2 2 2 2 3 . 2 . 2 2 1 . 1 2 Gunslinging 2 | . 1 . . . 1 1 . 1 2 . 1 . 1 1 . . . 1 Exploded 3 | . . . 2 3 . . . . . . . . . . . . . . Melee 1 | . . . . . 1 . . . . . . . . . . . . . Uniques/NPCs Destroyed . | . . . . . . . . . . . . . . . . . . . Combat | -11 -10 -10 -9 -9 -8 -8 -8 -8 -7 -7 -7 -7 -7 -7 -6 -6 -6 -6 -------- Run | Yrd Mat Min Mat Min Mat Gar Mat Gar Fac Was Fac Gar Fac Gar Fac Was Fac Gar Hostile Shots Fired 1710 | . 68 31 151 60 35 62 107 108 255 . 149 . 186 277 9 . . 212 Missed 548 | . 19 9 28 15 10 15 22 35 97 . 54 . 64 95 2 . . 83 Hits 1162 | . 49 22 123 45 25 47 85 73 158 . 95 . 122 182 7 . . 129 Melee 24 | . . . 2 4 . . . 1 8 . . . 3 4 . . . 2 Projectile 1138 | . 49 22 121 41 25 47 85 72 150 . 95 . 119 178 7 . . 127 AOE 5 | . . . . 1 . 1 . . . . . . 1 1 . . 1 . Critical Strikes 33 | . . 1 3 1 1 . 5 4 6 . 4 . 3 2 . . . 3 Actively Blocked 3 | . . . . . . . . . . . . . . . . . . 3 Part Disruptions 1 | . . . . . . . . . 1 . . . . . . . . . Damage Taken 14486 | . 557 211 1484 606 223 372 1229 1002 2379 . 1131 . 1210 1835 106 . 38 2103 Core 1680 | . 98 12 169 117 20 19 138 89 265 . 123 . 116 185 . . . 329 Absorbed by Shields 1635 | . . . 21 206 82 188 140 197 . . . . 273 363 . . . 165 Reduced by Siege Mode 33 | . . . . . . . . . 33 . . . . . . . . . Ignored by Resistances 40 | . . . . . . . . . 16 . 24 . . . . . . . Regen/Repaired (Parts) 2054 | . 106 . 253 . . . 129 . . . . 173 346 558 489 . . . Core Remaining (%) 47 | 100 . 56 . 28 . . . 51 . . . . . 1 . . . . Volleys Fired 848 | 9 83 17 91 31 12 30 40 66 93 9 82 15 66 106 14 8 8 68 Largest 4 | 2 2 2 3 3 4 4 4 4 4 1 4 1 4 4 4 1 1 4 Hottest 146 | 70 70 60 102 69 92 134 144 143 112 5 103 20 86 146 88 5 5 123 Shots Fired 2509 | 18 156 34 263 75 48 105 149 236 322 9 273 16 205 300 32 8 9 251 Gun 2176 | 18 110 . 189 66 48 92 122 221 307 . 265 1 185 281 25 . 1 245 Cannon 210 | . 46 34 71 . . 13 27 12 1 . . . . . . . . 6 Launcher 13 | . . . 3 9 . . . . 1 . . . . . . . . . Special 110 | . . . . . . . . 3 13 9 8 15 20 19 7 8 8 . Kinetic 2262 | 9 119 34 224 66 48 105 149 233 306 . 254 1 185 253 24 . 1 251 Thermal 126 | 9 37 . 36 . . . . . 2 . 11 2 . 28 1 . . . Explosive 12 | . . . 3 9 . . . . . . . . . . . . . . Electromagnetic 1 | . . . . . . . . . 1 . . . . . . . . . Robot Hit Streak 22 | 4 12 4 20 4 7 17 10 14 17 6 14 22 19 21 7 9 9 14 Robot Miss Streak 10 | 1 3 3 10 4 6 5 5 8 4 2 4 . 4 4 5 1 . 3 Penetration Max 1 | . . . . . . . 1 . . . . . . . . . . 1 Secondary Targets 55 | . 1 . 3 2 3 6 2 6 9 . 2 . 3 8 . . . 10 Max Gunslinging Chain 3 | . 1 . 1 1 1 1 1 1 3 . 1 . 1 1 . . . 2 Shots Hit Robots 1647 | 12 97 17 159 41 19 58 97 175 230 7 169 24 147 190 12 5 13 175 Core Hits 637 | 6 47 13 61 32 13 29 39 58 94 . 57 5 41 72 5 . . 65 Critical Kills 9 | . . . . . . 1 3 . . . 1 1 1 1 . . . 1 Critical Parts Destroyed 17 | . . . 1 . . . 3 3 3 . 5 . . 2 . . . . Critical Strikes 42 | 2 4 . 6 . . 1 6 8 3 . 6 1 1 3 . . . 1 Burn 9 | 2 3 . 4 . . . . . . . . . . . . . . . Destroy 18 | . . . 1 . . 1 6 3 1 . 1 . 1 3 . . . 1 Blast 2 | . 1 . 1 . . . . . . . . . . . . . . . Smash 8 | . . . . . . . . . 2 . 5 1 . . . . . . Impale 5 | . . . . . . . . 5 . . . . . . . . . . Melee Attacks 141 | . 1 . 1 . . 8 17 37 25 . 16 13 1 6 1 . 6 9 Impact 72 | . 1 . 1 . . 8 . . 10 . 16 13 1 6 1 . 6 9 Slashing 1 | . . . . . . . . . 1 . . . . . . . . . Piercing 52 | . . . . . . . 1 37 14 . . . . . . . . . Sneak Attacks 40 | . . . . . . . 16 . 7 . 12 . 1 . . . 4 . Combat Hostiles 2 | . . . . . . . . . . . 2 . . . . . . . Follow-up Attacks . | . . . . . . . . . . . . . . . . . . . Damage Inflicted 34372 | 153 1456 329 2911 971 326 991 1422 3348 5184 . 4663 1203 3060 4002 154 . 477 3722 Guns 25621 | 153 889 . 1916 546 307 736 885 2153 4244 . 3278 . 2916 3927 154 . . 3517 Cannons 2579 | . 521 310 723 . . 253 482 85 . . . . . . . . . 205 Explosions 794 | . . . 185 425 . . . . 184 . . . . . . . . . Melee 5077 | . . . . . . . . 1110 756 . 1385 1182 92 75 . . 477 . Ramming 280 | . 46 19 87 . 19 2 55 . . . . . 52 . . . . . Kinetic 26887 | 80 1110 310 2248 546 307 989 1367 2238 4244 . 3278 . 2916 3378 154 . . 3722 Thermal 1444 | 73 300 . 391 . . . . . 110 . . 21 . 549 . . . . Explosive 610 | . . . 185 425 . . . . . . . . . . . . . . Electromagnetic 74 | . . . . . . . . . 74 . . . . . . . . . Impact 3967 | . . . . . . . . . 756 . 1385 1182 92 75 . . 477 . Slashing . | . . . . . . . . . . . . . . . . . . . Piercing 1110 | . . . . . . . . 1110 . . . . . . . . . . Highest Corruption 7 | . . . . . . . . 1 1 7 7 2 2 4 . 3 3 3 Average Corruption 2 | . . . . . . . . 1 1 4 4 1 1 3 . 3 3 3 Corruption Purged 10 | . . . . . . . . . . . 8 . 2 . . . . . Corruption Blocked . | . . . . . . . . . . . . . . . . . . . Effects 148 | . . . . . . . . 19 7 4 14 19 13 43 . 2 10 17 Message Errors 32 | . . . . . . . . 4 1 1 2 7 5 7 . . 1 4 Matter Fused 38 | . . . . . . . . 4 1 1 5 3 3 15 . 1 4 1 Heat Flow Errors 15 | . . . . . . . . 2 . . . 2 . 5 . 1 1 4 Energy Discharges 14 | . . . . . . . . 2 . 1 2 1 1 3 . . 1 3 Parts Rejected 3 | . . . . . . . . . 1 1 1 . . . . . . . Parts Fused 1 | . . . . . . . . . . . 1 . . . . . . . Data Loss (minor) 17 | . . . . . . . . 3 1 . 1 3 2 6 . . . 1 Data Loss (major) 5 | . . . . . . . . . 1 . . 1 1 1 . . 1 . Misfires 12 | . . . . . . . . 2 . . 2 1 1 3 . . 1 2 Alerts 4 | . . . . . . . . 2 . . . 1 . . . . 1 . Weapon Failures 7 | . . . . . . . . . 2 . . . . 3 . . . 2 Overload Shots . | . . . . . . . . . . . . . . . . . . . Overflow Damage 2417 | . 3 16 16 . . . 7 90 493 . 1147 213 27 40 . . 365 . Projectiles 39 | . . 16 16 . . . 7 . . . . . . . . . . . Explosions 88 | . . . . . . . . . 88 . . . . . . . . . Melee 2290 | . 3 . . . . . . 90 405 . 1147 213 27 40 . . 365 . Knockbacks 37 | . 9 2 9 . . . 4 . 1 . 7 . 1 . . . 1 3 Impact 12 | . . . 2 . . . . . 1 . 7 . 1 . . . 1 . Kinetic 24 | . 9 2 7 . . . 4 . . . . . . . . . . 2 Secondary 1 | . . . . . . . . . . . . . . . . . . 1 Self-Inflicted Damage 133 | . . . . 107 . . . . . . . . 26 . . . . . Shots 3 | . . . . 3 . . . . . . . . . . . . . . Rammed 33 | . 13 4 4 . 1 1 8 . . . . . 2 . . . . . Targets Rammed 37 | . 14 4 6 . 2 1 8 . . . . . 2 . . . . . Kicked . | . . . . . . . . . . . . . . . . . . . Crushed 4 | . 1 . 2 . 1 . . . . . . . . . . . . . Highest Temperature 442 | 27 111 159 374 65 76 203 313 370 442 . 232 276 266 350 32 240 149 288 Average Temperature 78 | 11 38 50 89 24 32 43 106 102 62 . 67 132 80 109 32 130 94 64 Received Heat Transfer 3613 | . 261 60 405 64 88 78 411 255 288 . 354 . 198 281 . . 12 858 Effects 18 | . . . 5 . . . 4 6 1 . . . . 1 . . . 1 Shutdowns 2 | . . . 1 . . . . . . . . . . 1 . . . . Energy Bleed 4 | . . . 1 . . . 1 1 . . . . . . . . . 1 Interference 10 | . . . 3 . . . 3 4 . . . . . . . . . . Matter Decay 1 | . . . . . . . . 1 . . . . . . . . . . Damage (minor) 1 | . . . . . . . . . 1 . . . . . . . . . Siege Activations 1 | . . . . . . . . . 1 . . . . . . . . . Total Turns 28 | . . . . . . . . . 28 . . . . . . . . . Longest Duration 28 | . . . . . . . . . 28 . . . . . . . . . Martial Activations . | . . . . . . . . . . . . . . . . . . . Shielding Activations . | . . . . . . . . . . . . . . . . . . . Robots Disrupted . | . . . . . . . . . . . . . . . . . . . Combat Hostiles . | . . . . . . . . . . . . . . . . . . . Robots Corrupted 13 | . . . . . . . . . . . 7 1 1 1 . . 3 . Combat Hostiles 2 | . . . . . . . . . . . 1 1 . . . . . . Parts Fried 22 | . . . . . . . . . 4 . 10 1 1 . . . 6 . Impact Corruptions 51 | . 1 . . . . . . . 9 . 24 4 1 2 . . 10 . Robots Melted . | . . . . . . . . . . . . . . . . . . . Combat Hostiles . | . . . . . . . . . . . . . . . . . . . Parts Melted 8 | . 4 . 4 . . . . . . . . . . . . . . . Heat Transferred 3565 | 370 1110 . 1147 . . . . . 50 . . 74 . 814 . . . . Parts Sabotaged . | . . . . . . . . . . . . . . . . . . . Parts Stolen . | . . . . . . . . . . . . . . . . . . . Parts Stripped . | . . . . . . . . . . . . . . . . . . . Power Chain Reactions . | . . . . . . . . . . . . . . . . . . . Alert | -11 -10 -10 -9 -9 -8 -8 -8 -8 -7 -7 -7 -7 -7 -7 -6 -6 -6 -6 ------- Run | Yrd Mat Min Mat Min Mat Gar Mat Gar Fac Was Fac Gar Fac Gar Fac Was Fac Gar Maximum Alert Level 4 | . . . 1 . 1 3 1 4 3 1 1 3 3 4 3 . . 2 Low Security (%) 53 | 100 100 100 87 100 99 4 81 6 . . 57 . . . . 100 100 43 Level 1 10 | . . . 12 . . 7 18 12 . 100 42 30 9 . . . . 8 Level 2 15 | . . . . . . 66 . 30 21 . . 38 66 11 28 . . 47 Level 3 17 | . . . . . . 21 . 37 78 . . 30 24 55 71 . . . Level 4 3 | . . . . . . . . 13 . . . . . 32 . . . . Level 5 . | . . . . . . . . . . . . . . . . . . . High Security . | . . . . . . . . . . . . . . . . . . . Max Security . | . . . . . . . . . . . . . . . . . . . Peak Influence 1430 | 5 120 78 295 114 205 807 393 1426 1038 363 326 1006 870 1430 750 182 92 686 Initial 750 | . . 40 27 114 . 126 393 100 748 363 205 215 527 585 750 182 92 . Average 341 | . 38 9 117 16 72 573 153 721 818 330 162 568 569 990 686 156 15 328 Influence Increases 11783 | 25 756 241 1303 179 255 691 863 1326 1152 . 869 791 1102 1400 92 . 22 716 Destroy 0b10 Robot/C 6060 | . 440 180 660 140 200 320 480 560 640 . 600 . 540 740 80 . . 480 Destroy 0b10 Robot/NC 490 | 25 55 5 90 . 5 . 45 15 85 . 75 10 45 10 . . 20 5 Destroy Leader 1142 | . 130 30 222 20 50 10 156 40 134 . 120 . 130 50 10 . . 40 Allied During Kill 482 | . . 11 22 4 . 20 86 3 1 . 4 2 298 30 . . . 1 Successful Hack 284 | . 7 . 77 . . . 31 12 38 . 51 24 24 . . . . 20 Select Force Hacks 120 | . 60 . 60 . . . . . . . . . . . . . . . Disable Machine 495 | . 30 . 150 . . 15 30 15 150 . . . 60 45 . . . . Anti-Garrison Action 2300 | . . . . . . 300 . 650 . . . 750 . 500 . . . 100 Destroy Structure 215 | . 4 . 22 15 . 26 35 16 29 . 19 5 5 10 2 . 2 25 Lose Combat Pursuer 195 | . 30 15 . . . . . 15 75 . . . . 15 . . . 45 Influence Decreases 11107 | 25 650 275 1080 474 60 79 1516 54 1540 745 854 93 1271 807 1000 390 154 40 Entered New Map 4154 | . . 66 45 181 . 69 414 54 678 675 88 93 479 252 680 340 40 . Time Decay 4924 | 25 650 209 751 273 50 . 732 . 642 70 586 . 622 . 160 40 114 . Lost Part 270 | . . . 20 . 10 10 . . 100 . 30 . 40 20 . . . 40 Lost Ally 560 | . . . 40 20 . . 70 . 120 . . . 130 160 10 10 . . Purge Threat 1199 | . . . 224 . . . 300 . . . 150 . . 375 150 . . . Squads Dispatched 48 | . 8 . 4 . 1 . 5 . 12 . 7 . 10 . 1 . . . Investigation 16 | . 4 . 2 . . . 3 . 3 . 2 . 1 . 1 . . . Extermination 13 | . . . . . . . . . 5 . 4 . 4 . . . . . Reinforcement 12 | . 4 . 2 . 1 . 2 . 2 . . . 1 . . . . . Assault 3 | . . . . . . . . . 2 . . . 1 . . . . . Garrison 4 | . . . . . . . . . . . 1 . 3 . . . . . Intercept . | . . . . . . . . . . . . . . . . . . . Searches Triggered . | . . . . . . . . . . . . . . . . . . . Construction Impeded . | . . . . . . . . . . . . . . . . . . . Haulers Reinforced . | . . . . . . . . . . . . . . . . . . . Active Scanning Responses . | . . . . . . . . . . . . . . . . . . . Cargo Convoy Interrupts 2 | . . . . . . . . . 1 . . . 1 . . . . . Stealth | -11 -10 -10 -9 -9 -8 -8 -8 -8 -7 -7 -7 -7 -7 -7 -6 -6 -6 -6 --------- Run | Yrd Mat Min Mat Min Mat Gar Mat Gar Fac Was Fac Gar Fac Gar Fac Was Fac Gar Distress Signals 18 | . 3 . 1 . 1 1 5 . 3 . 1 . 2 1 . . . . Communications Jammed 46 | . . . . . . . . . . . . . 46 . . . . . Distress Signals 45 | . . . . . . . . . . . . . 45 . . . . . Times Spotted 444 | . 44 10 43 24 14 19 32 30 71 7 34 . 33 45 5 6 1 26 Peak Tracking Total 11 | . 5 3 6 11 6 3 6 3 11 5 5 . 8 5 4 3 1 6 Tactical Retreats 12 | . 1 1 . 1 . . . 1 4 1 . . . 1 . . . 2 Traps | -11 -10 -10 -9 -9 -8 -8 -8 -8 -7 -7 -7 -7 -7 -7 -6 -6 -6 -6 ------- Run | Yrd Mat Min Mat Min Mat Gar Mat Gar Fac Was Fac Gar Fac Gar Fac Was Fac Gar Traps Triggered 32 | . 2 . . . . 5 3 9 2 . 2 1 . 6 1 . . 1 Indirectly . | . . . . . . . . . . . . . . . . . . . Trap Hack Attempts 33 | . . . . . . . 33 . . . . . . . . . . . Triggered . | . . . . . . . . . . . . . . . . . . . Disarmed 1 | . . . . . . . 1 . . . . . . . . . . . Reprogrammed 3 | . . . . . . . 3 . . . . . . . . . . . Reused . | . . . . . . . . . . . . . . . . . . . Traps Extracted . | . . . . . . . . . . . . . . . . . . . Installed . | . . . . . . . . . . . . . . . . . . . Triggered . | . . . . . . . . . . . . . . . . . . . Machines | -11 -10 -10 -9 -9 -8 -8 -8 -8 -7 -7 -7 -7 -7 -7 -6 -6 -6 -6 ---------- Run | Yrd Mat Min Mat Min Mat Gar Mat Gar Fac Was Fac Gar Fac Gar Fac Was Fac Gar Machines Disabled 49 | . 2 . 10 . . 3 2 4 10 . . 4 4 7 . . . 3 Max in Single Turn 6 | . 1 . 3 . . 1 1 1 6 . . 1 2 1 . . . 1 Garrison Access 2 | . . . . . . . . . 2 . . . . . . . . . Garrison Relay 14 | . . . . . . 2 . 3 . . . 4 . 3 . . . 2 Phase Generator 1 | . . . . . . . . . . . . . . 1 . . . . Machines Repaired . | . . . . . . . . . . . . . . . . . . . Machines Dismantled 9 | . . . . . . 1 1 1 4 . . 1 . 1 . . . . Machines Sabotaged . | . . . . . . . . . . . . . . . . . . . Overloaded Fab Kills . | . . . . . . . . . . . . . . . . . . . Hacking | -11 -10 -10 -9 -9 -8 -8 -8 -8 -7 -7 -7 -7 -7 -7 -6 -6 -6 -6 --------- Run | Yrd Mat Min Mat Min Mat Gar Mat Gar Fac Was Fac Gar Fac Gar Fac Was Fac Gar Machines Accessed 87 | . 7 . 15 1 1 4 11 3 11 . 13 5 6 1 2 . 5 2 Terminals 53 | . 4 . 10 . . 4 7 3 5 . 6 5 3 1 1 . 2 2 Fabricators 4 | . . . . . . . . . 1 . 2 . 1 . . . . . Repair Stations 8 | . 1 . 2 . . . 1 . 1 . 1 . . . . . 2 . Recycling Units 5 | . 2 . 2 . . . . . . . 1 . . . . . . . Scanalyzers 9 | . . . 1 . . . 2 . 2 . 2 . 1 . 1 . . . Garrison Access 7 | . . . . . 1 . 1 . 2 . 1 . 1 . . . 1 . Total Hacks 229 | . 21 . 52 1 1 7 26 4 30 . 43 8 16 3 6 . 7 4 Successful 113 | . 11 . 28 1 1 1 13 1 14 . 24 3 8 . 5 . 1 2 Failed 116 | . 10 . 24 . . 6 13 3 16 . 19 5 8 3 1 . 6 2 Catastrophic 29 | . . . 4 . . 3 6 1 3 . 6 2 . 1 . . 2 1 Database Lockouts . | . . . . . . . . . . . . . . . . . . . Manual 62 | . 14 . 12 . . . 7 1 4 . 13 . 6 . . . 4 1 Terminals 136 | . 16 . 31 . . 7 18 4 16 . 17 8 8 3 2 . 2 4 Fabricators 12 | . . . . . . . . . 2 . 7 . 3 . . . . . Repair Stations 24 | . 3 . 12 . . . 3 . 1 . 1 . . . . . 4 . Recycling Units 6 | . 2 . 2 . . . . . . . 2 . . . . . . . Scanalyzers 38 | . . . 7 . . . 4 . 9 . 11 . 3 . 4 . . . Garrison Access 12 | . . . . . 1 . 1 . 2 . 5 . 2 . . . 1 . Terminal Hacks 49 | . 7 . 10 1 . 1 7 1 5 . 8 3 3 . 1 . . 2 Part Schematic 3 | . 2 . . . . . . . 1 . . . . . . . . . Robot Schematic 3 | . 2 . 1 . . . . . . . . . . . . . . . Robot Analysis 4 | . . . 1 . . . . . 2 . 1 . . . . . . . Prototype ID Bank 4 | . 1 . 1 . . . . . . . 2 . . . . . . . Open Door 2 | . . . . 1 . . . . . . . 1 . . . . . . Branch Access Points 1 | . . . 1 . . . . . . . . . . . . . . . Emergency Access Points 2 | . 1 . . . . . . . . . . . . . . . . 1 Terminal Index 2 | . . . . . . . 1 . 1 . . . . . . . . . Fabricator Index 1 | . . . . . . . . . . . 1 . . . . . . . Repair Station Index 1 | . . . . . . . 1 . . . . . . . . . . . Unreport Threat 6 | . . . 2 . . . 2 . . . 1 . . . 1 . . . Locate Traps 9 | . 1 . 3 . . . 1 . 1 . . . 3 . . . . . Recall Investigation 1 | . . . . . . . . . . . 1 . . . . . . . Hauler Manifests 1 | . . . . . . . 1 . . . . . . . . . . . Registered Components 1 | . . . . . . . . . . . 1 . . . . . . . Zone Layout 3 | . . . 1 . . . 1 . . . 1 . . . . . . . Garrison Registry 4 | . . . . . . 1 . 1 . . . 1 . . . . . 1 Patrol Navigation 1 | . . . . . . . . . . . . 1 . . . . . . Fabricator Hacks 5 | . . . . . . . . . 1 . 3 . 1 . . . . . Load Schematic 4 | . . . . . . . . . 1 . 2 . 1 . . . . . Build 1 | . . . . . . . . . . . 1 . . . . . . . Repair Station Hacks 14 | . 2 . 10 . . . 2 . . . . . . . . . . . Scan Component 9 | . 1 . 6 . . . 2 . . . . . . . . . . . Repair 5 | . 1 . 4 . . . . . . . . . . . . . . . Recycling Unit Hacks 1 | . . . . . . . . . . . 1 . . . . . . . Retrieve Components 1 | . . . . . . . . . . . 1 . . . . . . . Scanalyzer 30 | . . . 6 . . . 3 . 5 . 10 . 2 . 4 . . . Insert Component 13 | . . . 3 . . . 1 . 3 . 4 . 1 . 1 . . . Analyze 17 | . . . 3 . . . 2 . 2 . 6 . 1 . 3 . . . Garrison Access Hacks 7 | . . . . . 1 . 1 . 2 . 1 . 1 . . . 1 . Unlock Access 5 | . . . . . 1 . 1 . . . 1 . 1 . . . 1 . Seal Access 2 | . . . . . . . . . 2 . . . . . . . . . Unauthorized Hacks 7 | . 2 . 2 . . . . . 1 . 1 . 1 . . . . . Terminals . | . . . . . . . . . . . . . . . . . . . Fabricators 2 | . . . . . . . . . 1 . . . 1 . . . . . Recompile 2 | . . . . . . . . . 1 . . . 1 . . . . . Repair Stations 1 | . . . . . . . . . . . 1 . . . . . . . Mechanics 1 | . . . . . . . . . . . 1 . . . . . . . Recycling Units 4 | . 2 . 2 . . . . . . . . . . . . . . . Tunnel 4 | . 2 . 2 . . . . . . . . . . . . . . . Scanalyzers . | . . . . . . . . . . . . . . . . . . . Garrison Access . | . . . . . . . . . . . . . . . . . . . Data Cores Recovered 2 | . . . 1 . . . 1 . . . . . . . . . . . Used 1 | . . . . . . . 1 . . . . . . . . . . . Hacking Detections 74 | . 5 . 12 . . 4 10 3 8 . 13 4 6 1 2 . 4 2 Full Trace Events 9 | . . . 1 . . 2 1 . 2 . 1 1 . . 1 . . . Feedback Events 1 | . . . . . . . . . . . . 1 . . . . . . Corruption 1 | . . . . . . . . . . . . 1 . . . . . . Feedback Blocked . | . . . . . . . . . . . . . . . . . . . Robot Schematics Acquired 3 | . 2 . 1 . . . . . . . . . . . . . . . Robots Built . | . . . . . . . . . . . . . . . . . . . Authchips . | . . . . . . . . . . . . . . . . . . . Time . | . . . . . . . . . . . . . . . . . . . Total Robot Build Rating . | . . . . . . . . . . . . . . . . . . . Part Schematics Acquired 12 | . 2 . 3 . . . 1 . 2 . 3 . 1 . . . . . Parts Built 2 | . . . . . . . . . . . 2 . . . . . . . Authchips 1 | . . . . . . . . . . . 1 . . . . . . . Time 39 | . . . . . . . . . . . 39 . . . . . . . Total Part Build Rating 14 | . . . . . . . . . . . 14 . . . . . . . Parts Repaired 5 | . 1 . 4 . . . . . . . . . . . . . . . Time 147 | . 26 . 121 . . . . . . . . . . . . . . . Parts Recycled . | . . . . . . . . . . . . . . . . . . . Recycled Matter . | . . . . . . . . . . . . . . . . . . . Retrieved Matter . | . . . . . . . . . . . . . . . . . . . Retrieved Components . | . . . . . . . . . . . . . . . . . . . Parts Scanalyzed 11 | . . . 3 . . . 1 . 3 . 2 . 1 . 1 . . . Part Schematics Acquired 9 | . . . 3 . . . 1 . 1 . 3 . 1 . . . . . Parts Damaged 2 | . . . . . . . . . 1 . . . 1 . . . . . Bothacking | -11 -10 -10 -9 -9 -8 -8 -8 -8 -7 -7 -7 -7 -7 -7 -6 -6 -6 -6 ------------ Run | Yrd Mat Min Mat Min Mat Gar Mat Gar Fac Was Fac Gar Fac Gar Fac Was Fac Gar Used RIF Installer 8 | . . . . . . 1 . 2 . . . 2 . 2 . . . 1 Coupler Efficiency 1 | . . . . . . . . . . . . . . 1 . . . . Hotswap 1 | . . . . . . . . 1 . . . . . . . . . . Command Fork 1 | . . . . . . . . . . . . . . . . . . 1 Signal Jammer 1 | . . . . . . . . . . . . 1 . . . . . . Zone Cloak 1 | . . . . . . . . . . . . 1 . . . . . . Watcher Feeds 1 | . . . . . . . . 1 . . . . . . . . . . Program Shield 1 | . . . . . . . . . . . . . . 1 . . . . Robots Hacked 56 | . . . . . . . 8 1 7 6 5 1 9 7 3 6 3 . Non-combat 33 | . . . . . . . 8 . 7 . 2 1 9 1 3 . 2 . Combat 23 | . . . . . . . . 1 . 6 3 . . 6 . 6 1 . Robot Hacks Applied 73 | . . . . . . . 10 1 9 8 6 1 10 11 3 8 6 . parse_system 8 | . . . . . . . 3 . . 2 . . 1 . . 2 . . find_chute 2 | . . . . . . . . . 1 . . . . . 1 . . . find_fabricator 1 | . . . . . . . . . 1 . . . . . . . . . drop_inventory 6 | . . . . . . . 1 . 3 . . . . . . . 2 . find_recycling 1 | . . . . . . . . . 1 . . . . . . . . . ignore_parts 1 | . . . . . . . . . 1 . . . . . . . . . purge_threat 3 | . . . . . . . . . . . . . . 3 . . . . block_reporting 2 | . . . . . . . . . 2 . . . . . . . . . map_route 1 | . . . . . . . . . . . . . 1 . . . . . ignore_targets 12 | . . . . . . . . . . 6 . . . . . 6 . . find_garrison 2 | . . . . . . . . . . . 1 . . . . . 1 . overload_power 1 | . . . . . . . . . . . . . . 1 . . . . reboot_system 1 | . . . . . . . . . . . 1 . . . . . . . overwrite_iff 4 | . . . . . . . . . . . 2 . . 1 . . 1 . formatsys_low 20 | . . . . . . . 6 . . . 2 1 7 1 1 . 2 . formatsys_high 8 | . . . . . . . . 1 . . . . 1 5 1 . . . Relay Couplers Released 55 | . . . . . . 7 . 10 . . . 16 . 14 . . . 8 Machine Destruction 55 | . . . . . . 7 . 10 . . . 16 . 14 . . . 8 Attached 14 | . . . . . . . 2 1 1 1 1 1 2 2 1 1 1 . Fabnet Peak Effective % . | . . . . . . . . . . . . . . . . . . . Robots Rewired 10 | . . . . . . 3 . . . . . 7 . . . . . . Allies Hacked 3 | . . . . . . . . . . . . . 3 . . . . . Hacks Repelled . | . . . . . . . . . . . . . . . . . . . Allies | -11 -10 -10 -9 -9 -8 -8 -8 -8 -7 -7 -7 -7 -7 -7 -6 -6 -6 -6 -------- Run | Yrd Mat Min Mat Min Mat Gar Mat Gar Fac Was Fac Gar Fac Gar Fac Was Fac Gar Total Allies 48 | . . 3 . 1 . 3 6 2 . . 4 10 8 6 2 . 3 . Largest Group 12 | . . 3 3 1 . 3 7 1 1 . 2 12 12 11 2 1 2 2 Highest-Rated Group 288 | . . 40 40 31 . 103 138 20 15 . 26 288 288 155 49 26 62 44 Highest-Rated Ally 41 | . . 16 16 31 . 39 39 20 15 . 16 32 40 39 26 26 41 23 Total Orders 123 | . . . . . . 4 18 . 5 . . 49 21 20 1 . . 5 STAY 35 | . . . . . . 2 2 . . . . 17 1 8 . . . 5 ROAM 2 | . . . . . . . . . 2 . . . . . . . . . FOLLOW 23 | . . . . . . 2 3 . . . . 11 1 6 . . . . GUARD 20 | . . . . . . . 5 . . . . . 15 . . . . . AID 17 | . . . . . . . 5 . . . . 1 4 6 1 . . . DROP 8 | . . . . . . . 2 . . . . 6 . . . . . . PICKUP 10 | . . . . . . . 1 . . . . 9 . . . . . . COLLECT 5 | . . . . . . . . . . . . 5 . . . . . . EXPLORE 3 | . . . . . . . . . 3 . . . . . . . . . Ally Attacks 194 | . . . 36 8 . 8 57 1 4 . 6 . 51 20 . . 3 . Total Damage 4511 | . . . 296 146 . 106 958 23 47 . 77 . 2148 682 . . 28 . Kills 51 | . . . 6 3 . 1 15 . 1 . 1 . 19 5 . . . . Allies Corrupted 1 | . . . . . . . . . . . . . 1 . . . . . Allies Melted . | . . . . . . . . . . . . . . . . . . . Intel | -11 -10 -10 -9 -9 -8 -8 -8 -8 -7 -7 -7 -7 -7 -7 -6 -6 -6 -6 ------- Run | Yrd Mat Min Mat Min Mat Gar Mat Gar Fac Was Fac Gar Fac Gar Fac Was Fac Gar Active Infowar (turns) 1138 | . . . 23 . . 42 . 1006 . . 43 . . 24 . . . . Seismic 1114 | . . . 23 . . 42 . 1006 . . 43 . . . . . . . Jamming 24 | . . . . . . . . . . . . . . 24 . . . . Robot Analysis Total 4 | . . . 1 . . . . . 2 . 1 . . . . . . . Derelict Logs Recovered 2 | . . 1 . 1 . . . . . . . . . . . . . . Drone Launches 16 | . . . . . . . . . 16 . . . . . . . . . Drone Recoveries . | . . . . . . . . . . . . . . . . . . . Exploration | -11 -10 -10 -9 -9 -8 -8 -8 -8 -7 -7 -7 -7 -7 -7 -6 -6 -6 -6 ------------- Run | Yrd Mat Min Mat Min Mat Gar Mat Gar Fac Was Fac Gar Fac Gar Fac Was Fac Gar Turns Passed 31756 | 181 3692 1806 4858 1627 189 1530 3638 2416 2317 147 1831 1373 2116 2158 338 96 618 825 Spaces Moved 14359 | 85 1125 544 1705 630 56 536 1209 821 1303 110 1151 988 1624 1380 211 60 437 384 Core 1 | 1 . . . . . . . . . . . . . . . . . . Treads 6586 | 84 1125 544 1705 630 56 536 1153 750 3 . . . . . . . . . Legs . | . . . . . . . . . . . . . . . . . . . Wheels 7772 | . . . . . . . 56 71 1300 110 1151 988 1624 1380 211 60 437 384 Hover . | . . . . . . . . . . . . . . . . . . . Flight . | . . . . . . . . . . . . . . . . . . . Fastest Speed 50 | 50 160 320 240 240 240 240 225 150 107 110 107 107 105 105 126 126 126 126 Average Speed 181 | 158 290 320 242 240 240 240 244 232 127 110 110 113 107 116 126 126 126 126 Slowest Speed 480 | 160 320 320 320 240 240 240 320 240 480 110 115 126 130 130 126 126 126 144 Overloaded Moves . | . . . . . . . . . . . . . . . . . . . Propulsion Burnouts . | . . . . . . . . . . . . . . . . . . . Robots Hopped . | . . . . . . . . . . . . . . . . . . . Potential Cave-ins . | . . . . . . . . . . . . . . . . . . . Cave-ins Triggered . | . . . . . . . . . . . . . . . . . . . Exploration Rate (%) 57 | 7 90 89 99 100 9 75 79 67 36 74 24 90 28 74 7 72 15 48 Regions Visited 18 Branch Regions 2 Pre-discovered Areas 4 | . 2 . 2 . . . . . . . . . . . . . . . Known Exits Taken 7 | . . . 1 1 1 . 1 . . . 1 . 1 . . . 1 . Unknown Exits Taken 3 | 1 1 1 . . . . . . . . . . . . . . . . Scrap Searched 3 | . . 2 . 1 . . . . . . . . . . . . . . Spaces Dug 30 | . . . . . . 1 1 1 12 . 10 . . . 2 . 2 1 Terrain Destroyed 113 | . . . 20 36 . 1 9 1 25 . 12 . . . 2 . 2 5 Melee 21 | . . . . . . 1 1 1 11 . 3 . . . 1 . 2 1 Projectile 23 | . . . 1 . . . 7 . 1 . 9 . . . 1 . . 4 AOE 68 | . . . 19 36 . . . . 13 . . . . . . . . . Terrain Rammed . | . . . . . . . . . . . . . . . . . . . Walls Destroyed . | . . . . . . . . . . . . . . . . . . . Machines Disabled . | . . . . . . . . . . . . . . . . . . . Actions | -11 -10 -10 -9 -9 -8 -8 -8 -8 -7 -7 -7 -7 -7 -7 -6 -6 -6 -6 --------- Run | Yrd Mat Min Mat Min Mat Gar Mat Gar Fac Was Fac Gar Fac Gar Fac Was Fac Gar Total 18137 | 110 1361 570 2230 690 79 672 1766 1107 1710 130 1556 1204 1867 1723 263 76 485 538 Wait 1520 | . 73 2 281 14 1 7 369 50 68 6 214 133 125 120 21 4 10 22 Move 14346 | 84 1124 543 1704 629 56 535 1209 820 1303 109 1150 987 1623 1379 211 59 437 384 Hop . | . . . . . . . . . . . . . . . . . . . Pick Up 219 | 9 29 2 35 1 1 4 15 15 40 1 14 14 9 14 3 2 2 9 Fast Attach 73 | 6 2 . 9 . . 7 2 11 13 1 11 3 2 4 . . . 2 Attach 70 | 1 . . 7 1 1 3 5 3 20 . 9 2 5 3 2 1 2 5 Detach 15 | . . . 1 . . 1 . . 7 . 3 2 . 1 . . . . Swap 403 | 1 21 . 44 7 3 20 41 44 65 3 37 12 23 36 9 1 15 21 Drop 253 | . 14 2 51 7 3 11 21 29 42 1 20 16 5 13 2 1 5 10 Fire 848 | 9 83 17 91 31 12 30 40 66 93 9 82 15 66 106 14 8 8 68 Melee 141 | . 1 . 1 . . 8 17 37 25 . 16 13 1 6 1 . 6 9 Ram 2 | . . . . . . . . . . . . . 2 . . . . . Kick . | . . . . . . . . . . . . . . . . . . . Crush 35 | . 14 4 6 . 2 1 8 . . . . . . . . . . . Escape Stasis 82 | . . . . . . 10 . 24 8 . . . . 32 . . . 8 Rewire 29 | . . . . . . 24 . . . . . 4 1 . . . . . Trap 33 | . . . . . . . 33 . . . . . . . . . . . Miscellaneous 68 | . . . . . . 11 6 8 26 . . 3 5 9 . . . . Route ------- -11/Scrapyard -10/Materials (discovered 4 exits: *Mat x2 / [*Min] / [*Sub]) -10/Mines (discovered 4 exits: *Mat x2 / [*Exi] / [*Sub]) -9/Materials (discovered 5 exits: *Mat x3 / *Min x2) -9/Mines (discovered 2 exits: *Mat x2) -8/Materials (discovered 2 exits: Fac / Gar) -8/Garrison (discovered 4 exits: *Mat x4) -8/Materials (discovered 4 exits: *Fac x2 / [*Sto] / Gar) -8/Garrison (discovered 3 exits: *Fac x3) -7/Factory (discovered 2 exits: *Fac x2) -7/Waste -7/Factory -7/Garrison (discovered 3 exits: *Fac x3) -7/Factory (discovered 5 exits: *Fac x3 / [Low] / Gar) -7/Garrison (discovered 2 exits: *Fac x2) -6/Factory -6/Waste -6/Factory (discovered 2 exits: [*Fac] / Gar) -6/Garrison (discovered 3 exits: [*Fac x3]) History --------- Turn | Location | Event 8 | -11/Scrapyard | Discovered new exit (range 15) 182 | -11/Scrapyard | Entered Materials 317 | -10/Materials | Build established: Mutant 374 | -10/Materials | Discovered new exit (range 7) 1748 | -10/Materials | Discovered new exit (range 14) 2557 | -10/Materials | Discovered new exit (range 13) 2951 | -10/Materials | Repaired Lgt. Treads 3200 | -10/Materials | Discovered new exit (range 10) 3874 | -10/Materials | Entered Mines 3888 | -10/Mines | Met a Derelict bent on vengeance 4224 | -10/Mines | Deemed a non-threat by the Exiles lab entrance 4228 | -10/Mines | Discovered new exit (range 5) 4471 | -10/Mines | A weapon hastily lodged in a ceiling crevice suddenly fell to the ground 4568 | -10/Mines | Discovered new exit (range 8) 5039 | -10/Mines | Assisted by bots powering up and referring to "LRC-V3" 5359 | -10/Mines | Discovered new exit (range 3) 5653 | -10/Mines | Discovered new exit (range 9) 5680 | -10/Mines | Entered Materials 5680 | -9/Materials | Accompanied by 3 allies 5680 | -9/Materials | Evolved 2 slots: Propulsion x1, Weapon x1 5681 | -9/Materials | Identified exit to Mines 6188 | -9/Materials | Build established: Tank 6426 | -9/Materials | Discovered new exit (range 15) 6526 | -9/Materials | Identified exit to Materials 7958 | -9/Materials | Build established: Scavenger-Tank 8106 | -9/Materials | Discovered exit to Materials (range 11) 8388 | -9/Materials | Repaired Imp. Assault Rifle 8773 | -9/Materials | Discovered exit to Materials (range 14) 9130 | -9/Materials | Repaired Hvy. Assault Rifle 9163 | -9/Materials | Repaired Med. Armor Plating 9197 | -9/Materials | Repaired Hvy. Assault Rifle 10538 | -9/Materials | Entered Mines 10691 | -9/Mines | Found the Drone Emporium 10701 | -9/Mines | Found Prototype Device 10736 | -9/Mines | Discovered exit to Materials (range 8) 10776 | -9/Mines | Escorted by a lone wolf Derelict 10787 | -9/Mines | Learned location of 1 exit from Materials 11193 | -9/Mines | Assembled infested the area 11198 | -9/Mines | Assisted by a Guerilla fighting off Assembled 11231 | -9/Mines | Core integrity fell below 50% 11279 | -9/Mines | Destroyed 9 combat bots 11348 | -9/Mines | Discovered exit to Materials (range 9) 12165 | -9/Mines | Entered Materials 12165 | -8/Materials | Evolved 2 slots: Utility x1, Weapon x1 12166 | -8/Materials | Identified exit to Factory 12354 | -8/Materials | Identified exit to Garrison 12354 | -8/Materials | Entered Garrison 12358 | -8/Garrison | Identified Decoy Drone Bay 12402 | -8/Garrison | Discovered new exit (range 71) 12402 | -8/Garrison | Discovered new exit (range 49) 12402 | -8/Garrison | Discovered new exit (range 65) 12402 | -8/Garrison | Discovered new exit (range 31) 12439 | -8/Garrison | Garrison Relay disabled 13070 | -8/Garrison | Triggered checkpoint 13254 | -8/Garrison | Garrison Relay disabled 13289 | -8/Garrison | Installed Relay Interface Framework 13386 | -8/Garrison | Triggered checkpoint 13858 | -8/Garrison | Build established: Scavenger-Gunner 13884 | -8/Garrison | Entered Materials 13884 | -8/Materials | Accompanied by 3 allies 13889 | -8/Materials | Discovered new exit (range 14) 14369 | -8/Materials | Build established: Tank 14508 | -8/Materials | Discovered exit to Factory (range 7) 15200 | -8/Materials | Build established: Commander-Tank 15976 | -8/Materials | Lost 3 allies 16293 | -8/Materials | Build established: Tank 16465 | -8/Materials | Discovered exit to Factory (range 16) 17522 | -8/Materials | Identified exit to Garrison 17522 | -8/Materials | Entered Garrison 17565 | -8/Garrison | Triggered checkpoint 17637 | -8/Garrison | Expanded RIF knowledge: Hotswap 17677 | -8/Garrison | Garrison Relay disabled 17930 | -8/Garrison | Triggered checkpoint 18042 | -8/Garrison | Triggered checkpoint 18200 | -8/Garrison | Triggered checkpoint 18274 | -8/Garrison | Expanded RIF knowledge: Watcher Feeds 18321 | -8/Garrison | Garrison Relay disabled 18455 | -8/Garrison | Discovered exit to Factory (range 8) 18601 | -8/Garrison | Triggered checkpoint 18882 | -8/Garrison | Rescued a captive Derelict 19284 | -8/Garrison | Build established: Scavenger-Tank 19308 | -8/Garrison | Discovered exit to Factory (range 14) 19562 | -8/Garrison | Triggered checkpoint 19662 | -8/Garrison | Triggered checkpoint 19701 | -8/Garrison | Garrison Relay disabled 19772 | -8/Garrison | Discovered exit to Factory (range 15) 19772 | -8/Garrison | Discovered exit to Factory (range 77) 19772 | -8/Garrison | Discovered exit to Factory (range 80) 19938 | -8/Garrison | Entered Factory 19938 | -7/Factory | Accompanied by 1 ally 19938 | -7/Factory | Evolved 2 slots: Propulsion x1, Utility x1 20293 | -7/Factory | Build established: Bothacker-Gunner 20866 | -7/Factory | Discovered new exit (range 24) 21538 | -7/Factory | First assault squad dispatched 21587 | -7/Factory | Cargo convoy interrupted 21654 | -7/Factory | Found Prototype Device 21665 | -7/Factory | Discovered new exit (range 27) 21668 | -7/Factory | Lost 7 parts (2n1u4w) 21692 | -7/Factory | Identified Adv. EM Shield 21728 | -7/Factory | Lost 6 allies 21919 | -7/Factory | Build established: Gunner 22234 | -7/Factory | Build established: Scavenger-Tank 22255 | -7/Factory | Sucked down chute 22255 | -7/Factory | Entered Waste 22266 | -7/Waste | Spotted C-40 Crusher 22270 | -7/Waste | EMP discharged 22287 | -7/Waste | Spotted C-40 Crusher 22299 | -7/Waste | Spotted C-40 Crusher 22308 | -7/Waste | Spotted C-40 Crusher 22308 | -7/Waste | Spotted C-40 Crusher 22316 | -7/Waste | Spotted C-40 Crusher 22370 | -7/Waste | EMP discharged 22376 | -7/Waste | Discovered new exit (range 10) 22402 | -7/Waste | Entered Factory 23032 | -7/Factory | Fabricated Centrium Wheel (x2) 23318 | -7/Factory | Core integrity fell below 50% 23349 | -7/Factory | Build established: Tank 23365 | -7/Factory | Identified exit to Garrison 23545 | -7/Factory | Garrison activated, responded to threat 23809 | -7/Factory | Build established: Gunner 24233 | -7/Factory | Entered Garrison 24233 | -7/Garrison | Discovered recently destroyed garrison 24233 | -7/Garrison | Accompanied by 2 allies 24236 | -7/Garrison | Build established: Tank 24398 | -7/Garrison | Expanded RIF knowledge: Signal Jamming 24430 | -7/Garrison | Garrison Relay disabled 24654 | -7/Garrison | Garrison Relay disabled 24798 | -7/Garrison | Discovered new exit (range 10) 25109 | -7/Garrison | Rescued a captive Derelict 25110 | -7/Garrison | Rescued a captive Derelict 25127 | -7/Garrison | Discovered new exit (range 12) 25132 | -7/Garrison | Discovered new exit (range 55) 25132 | -7/Garrison | Discovered new exit (range 67) 25132 | -7/Garrison | Discovered new exit (range 13) 25165 | -7/Garrison | Garrison Relay disabled 25184 | -7/Garrison | Expanded RIF knowledge: Zone Cloak 25215 | -7/Garrison | Build established: Commander-Tank 25407 | -7/Garrison | Garrison Relay disabled 25606 | -7/Garrison | Entered Factory 25606 | -7/Factory | Accompanied by 12 allies 25715 | -7/Factory | Build established: Bothacker-Tank 26492 | -7/Factory | Discovered new exit (range 9) 26754 | -7/Factory | Identified exit to Garrison 26756 | -7/Factory | Discovered new exit (range 14) 26820 | -7/Factory | Discovered new exit (range 14) 27061 | -7/Factory | Discovered new exit (range 59) 27144 | -7/Factory | Cargo convoy interrupted 27190 | -7/Factory | Garrison activated, responded to threat 27205 | -7/Factory | P-60 Hacker assimilated allied HJ-PBC(b) 27205 | -7/Factory | P-60 Hacker assimilated allied Guardian 4c 27248 | -7/Factory | Lost 6 allies 27606 | -7/Factory | First assault squad dispatched 27722 | -7/Factory | Entered Garrison 27722 | -7/Garrison | Accompanied by 9 allies 27744 | -7/Garrison | Heavy support dispatched to Factory 27774 | -7/Garrison | Triggered checkpoint 27785 | -7/Garrison | Core integrity fell below 20% 27837 | -7/Garrison | Build established: Commander-Tank 27957 | -7/Garrison | Garrison Relay disabled 28078 | -7/Garrison | Heavy support dispatched to Factory 28178 | -7/Garrison | Phase Generator disabled 28248 | -7/Garrison | Triggered checkpoint 28271 | -7/Garrison | Triggered checkpoint 28284 | -7/Garrison | P-60 Hacker assimilated allied Angel 4a 28462 | -7/Garrison | Discovered new exit (range 15) 28589 | -7/Garrison | Build established: Commander-Gunner 28646 | -7/Garrison | Heavy support dispatched to Factory 28675 | -7/Garrison | H-XX Assembler disabled 28730 | -7/Garrison | Triggered checkpoint 28801 | -7/Garrison | Expanded RIF knowledge: Program Shield 28811 | -7/Garrison | Garrison Relay disabled 28896 | -7/Garrison | Build established: Tank 28977 | -7/Garrison | Triggered checkpoint 29015 | -7/Garrison | Garrison Relay disabled 29228 | -7/Garrison | Triggered checkpoint 29248 | -7/Garrison | Triggered checkpoint 29386 | -7/Garrison | Triggered checkpoint 29421 | -7/Garrison | Discovered new exit (range 15) 29424 | -7/Garrison | Triggered checkpoint 29532 | -7/Garrison | Expanded RIF knowledge: Coupler Efficiency 29579 | -7/Garrison | Spotted B-75 Beast 29579 | -7/Garrison | Spotted B-75 Beast 29880 | -7/Garrison | Entered Factory 29880 | -6/Factory | Accompanied by 1 ally 29880 | -6/Factory | Evolved 2 slots: Utility x2 30019 | -6/Factory | Discovered new exit (range 8) 30218 | -6/Factory | Sucked down chute 30218 | -6/Factory | Entered Waste 30229 | -6/Waste | Spotted C-40 Crusher 30233 | -6/Waste | EMP discharged 30242 | -6/Waste | Spotted C-40 Crusher 30260 | -6/Waste | Spotted C-40 Crusher 30260 | -6/Waste | Spotted C-40 Crusher 30268 | -6/Waste | 2 allies followed down the chute 30268 | -6/Waste | Spotted C-40 Crusher 30277 | -6/Waste | Spotted C-40 Crusher 30288 | -6/Waste | Discovered new exit (range 16) 30314 | -6/Waste | Entered Factory 30314 | -6/Factory | Accompanied by 1 ally 30885 | -6/Factory | Discovered new exit (range 15) 30924 | -6/Factory | Identified exit to Garrison 30932 | -6/Factory | Entered Garrison 30932 | -6/Garrison | Accompanied by 2 allies 31093 | -6/Garrison | Discovered new exit (range 44) 31093 | -6/Garrison | Discovered new exit (range 56) 31093 | -6/Garrison | Discovered new exit (range 39) 31113 | -6/Garrison | Triggered checkpoint 31138 | -6/Garrison | Garrison Relay disabled 31215 | -6/Garrison | Triggered checkpoint 31319 | -6/Garrison | Triggered checkpoint 31357 | -6/Garrison | Destroyed 8 combat bots 31390 | -6/Garrison | Triggered checkpoint 31475 | -6/Garrison | Build established: Bothacker-Tank 31526 | -6/Garrison | Expanded RIF knowledge: Command Fork 31538 | -6/Garrison | Triggered checkpoint 31588 | -6/Garrison | Garrison Relay disabled 31757 | -6/Garrison | Self-destructed Last Messages --------------- 31715_ Switching to secondary target: G-50 Soldier. 31722_ Slug penetrates G-50 Soldier. 31722_ Slug penetrates Wall. 31728_ Dropped Prc. Assault Rifle. 31730_ Acquired Prc. Assault Rifle. 31731_ Slug penetrates G-50 Soldier. 31732_ Com. Wheel destroyed. 31735_ Imp. Heavy Armor Plating destroyed. 31737_ System corrupted: Energy discharge (-56). 31742_ Slug penetrates G-50 Soldier. 31742_ G-50 Soldier knocked back. 31746_ Slug penetrates G-50 Soldier. 31746_ G-50 Soldier destroyed. 31749_ Slug penetrates Wall. 31753_ Slug penetrates G-50 Soldier. 31753_ G-50 Soldier suffers critical hit (Destroy). 31753_ G-50 Soldier destroyed. 31753_ Slug penetrates G-50 Soldier. 31753_ G-50 Soldier knocked back. 31756_ Arm. Wheel destroyed. Map ----- +----------------------------------------------------+ | ????????????????????????# ###### #####?????# #? | | ????????????????????????# ##"" ""#?????# #? | | ????????????????????????# ##"! !"#?????# #? | | ????????????????????????# ##"! !"#?????# #? | | ????????????????????????# ##"! !"#?????# #? | | ????????????????????????# ##"! !"#?????# #? | | ????????????????????????# ##"! !"#???### #? | | ????????????????????????# ##"! !"##### #? | | ????????????????????????# ##"" ""## + < #? | | ########????????????????# ##"""!!!!"""## ## #? | | #????????????????# ##""""""""""## #### #? | | #????????????????# ############## #??# #? | | ##### #????????????????# #????????????# #??# #? | | ?#### #????????????????# #????????????# #??# #? | | ?# # #????????????????# #????????????# #??# #? | | ?# + #????????????????# #????????????# #??# #? | | ?#### #????????????????# #????????????# #??# #? | | ????# #????????????????# #????????????# #??# #? | | ##### ###########??????#+;##############+#### #? | | #??????# #? | | ##### #??????# #? | | #???# ######## #??????# ######################? | | ##### ####???# #??????# #?????????????????????? | | + + + ##### #??????# #?????????????????????? | | ##### ## + #??????# #?????????????????????? | | ????#^^## ##### #??????#@ #?????????????????????? | | ????# ## #???# ########[=#?????????????????????? | | ????# ## #???# ## #;%!%#????????????????????? | | ????# ## #??## ## !#;=g#;#???????????????????? | | ##### ##+#### *%Yg% ##???????????????????? | | + ^ * ! #????????????????????? | | ##### ^ [ /#????????????????????? | | ????########## ## ## = #????????????????????? | | ???????????### ## ## = ###??????????????????? | | ???????????# " = = #??????????????????? | | ????######## " % #??????????????????? | | ????# + " * #??????????????????? | | ????# ###### " **= #???????????#####??? | | ????# #????### ## ## ###???????????#"# #??? | | ???##+######## ## ##[= #?????????????#"! #??? | | ???# ==######????????#* #??? | | ???# *=[ !+ #????????#" !#??? | | ???# #####+## = [![ #### #####????#"# #??? | | ???# #???# ## ##=[* ## =##??# ##""#????### #??? | | ???# ##### ### ##= [##= #???# ##T #??????# ###? | | ???# + ### ###+#### #???# ## ^#??????# #? | | ???# ##### + #?# #??# #???# ### #??????#= #? | | ##?# #???# ### #?# #??# #???# #?# ######## [ #? | | #?# #???# #?# #?# #??# #???# #?# ## +=###? | | "### #####+### ### #??# #???# #?# ## ##### #??? | +----------------------------------------------------+ Best States ------------- Heat Dissipation 68 Coolant Potential 65 Energy Generation 31 Energy Capacity 310 Matter Stores 386 Matter Capacity 500 Sight Range 16 Terrain Scan Density 10 Jamming Range 14 Armor Coverage 825 Resistance: EX 50 Resistance: EM 50 Evasion (%) 40 Melee Accuracy 6 Core Analysis 6 Recoil Reduction 3 Offensive Hacking 10 Relay Coupler Types 2 Relay Coupler Value 36 Authchip Count 1 Item Schematics ----------------- Lgt. Treads | -10/Materials | Hacked Huge Storage Unit | -10/Materials | Hacked Enh. Autogun | -9/Materials | Scanalyzed Datajack | -9/Materials | Scanalyzed Arm. Wheel | -9/Materials | Scanalyzed Hacking Suite | -8/Materials | Scanalyzed Hvy. Machine Gun | -7/Factory | Hacked System Restoration Module | -7/Factory | Scanalyzed Centrium Wheel | -7/Factory | Scanalyzed Mni. Fusion Reactor | -7/Factory | Scanalyzed Imp. Heavy Treads | -7/Factory | Scanalyzed Hvy. Wave Gun | -7/Factory | Scanalyzed Robot Schematics ------------------ M-13 Machinist | -10/Materials | Hacked S-10 Pest | -10/Materials | Hacked I-25 Savior | -9/Materials | Hacked Fabricated ------------ Centrium Wheel | x2 | -7/Factory | Authchip Repaired ---------- Lgt. Treads | 24% | -10/Materials Imp. Assault Rifle | 23% | -9/Materials Hvy. Assault Rifle | 40% | -9/Materials Med. Armor Plating | 70% | -9/Materials Hvy. Assault Rifle | 63% | -9/Materials Alien Tech Used ----------------- None Achievements -------------- None Challenges ------------ None Game ------ Seed LightpackNeutrinoTether Manual? 0 Play Time 04:17:30 Cumulative 938.5 hours Start 2025.06.19 @ 00:34:15 End 2025.06.20 @ 16:23:21 Sessions 5 Manual Loads 0 Difficulty Rogue Special Mode None Game No. 490 Rogue 490 Adventurer 0 Explorer 0 Win Type - Total 23 Types 10/4/3/0/1/1/2/2/0/0 Lore% 85 Gallery% 86 Achievement% 83 Wizard Run 0 Options --------- Layout 0 ASCII 0 Keyboard 0 Movement Numpad Keybinds 0 Fullscreen 2 Font 24/Smallcaps Map View 76x50 Zoom Use 0% Tactical HUD 1 Map Filters NONE Filters SHIFT_HUE(315) Steam 1 RUN: 37e2dc6a-74ba-4868-95ea-d904cc25d4d4